[Event "Live Chess"]
[Site "Chess.com"]
[Date "2024.06.02"]
[Round "-"]
[White "Grace6363"]
[Black "Purple1szed"]
[Result "0-1"]
[WhiteElo "1129"]
[BlackElo "2002"]
[TimeControl "300"]
[EndTime "7:31:21 PDT"]
[Termination "Purple1szed won by resignation"]

1. d4 {[%clk 0:04:56.6]} 1... d5 {[%clk 0:04:58.5]} 2. c4 {[%clk 0:04:55.4]}
2... c6 {[%clk 0:04:58.1]} 3. Nc3 {[%clk 0:04:54.1]} 3... Nf6 {[%clk 0:04:57.5]}
4. Nf3 {[%clk 0:04:53.5]} 4... dxc4 {[%clk 0:04:57.1]} 5. e4 {[%clk 0:04:52.4]}
5... b5 {[%clk 0:04:56]} 6. a4 {[%clk 0:04:52]} 6... b4 {[%clk 0:04:54.8]} 7.
Nb1 {[%clk 0:04:51.6]} 7... Nxe4 {[%clk 0:04:54.4]} 8. Bxc4 {[%clk 0:04:45.5]}
8... Bg4 {[%clk 0:04:51.1]} 9. O-O {[%clk 0:04:43.2]} 9... e6 {[%clk 0:04:49.4]}
10. Nbd2 {[%clk 0:04:39.8]} 10... Nxd2 {[%clk 0:04:46.7]} 11. Qxd2 {[%clk
0:04:37.1]} 11... Be7 {[%clk 0:04:46.2]} 12. Qf4 {[%clk 0:04:34.5]} 12... Bxf3
{[%clk 0:04:45.4]} 13. Qxf3 {[%clk 0:04:33.1]} 13... O-O {[%clk 0:04:44]} 14.
Bf4 {[%clk 0:04:22.5]} 14... Qxd4 {[%clk 0:04:41.1]} 15. b3 {[%clk 0:04:14.4]}
15... Qc3 {[%clk 0:04:16.1]} 16. Qxc3 {[%clk 0:04:05.1]} 16... bxc3 {[%clk
0:04:16]} 17. Rac1 {[%clk 0:03:59.7]} 17... Bf6 {[%clk 0:04:14.5]} 18. g4 {[%clk
0:03:54.1]} 18... g6 {[%clk 0:04:09]} 19. Bg5 {[%clk 0:03:53.1]} 19... Bxg5
{[%clk 0:04:07.8]} 20. Rxc3 {[%clk 0:03:50.1]} 20... Bf6 {[%clk 0:04:06.7]} 21.
Rf3 {[%clk 0:03:47.2]} 21... Bg7 {[%clk 0:04:04.9]} 22. h4 {[%clk 0:03:45.8]}
22... Nd7 {[%clk 0:04:04.3]} 23. Rd1 {[%clk 0:03:43.4]} 23... Ne5 {[%clk
0:04:04.2]} 24. Rf4 {[%clk 0:03:38.7]} 24... Nxc4 {[%clk 0:04:03.1]} 25. Rxc4
{[%clk 0:03:36.3]} 25... Rfd8 {[%clk 0:04:03]} 26. Rxd8+ {[%clk 0:03:33.6]}
26... Rxd8 {[%clk 0:04:02.9]} 27. Rxc6 {[%clk 0:03:33.2]} 27... Rd1+ {[%clk
0:04:02.2]} 28. Kg2 {[%clk 0:03:31.9]} 28... Rb1 {[%clk 0:04:00.8]} 29. Rc7
{[%clk 0:03:27.7]} 29... Rxb3 {[%clk 0:03:58.9]} 30. Rxa7 {[%clk 0:03:27.2]}
30... Bd4 {[%clk 0:03:57.7]} 31. Ra8+ {[%clk 0:03:26.1]} 31... Kg7 {[%clk
0:03:56.7]} 32. a5 {[%clk 0:03:24.4]} 32... Ra3 {[%clk 0:03:56.4]} 33. a6 {[%clk
0:03:23.5]} 33... Ra2 {[%clk 0:03:55.6]} 34. h5 {[%clk 0:03:20]} 34... Rxf2+
{[%clk 0:03:53.5]} 35. Kg3 {[%clk 0:03:18.1]} 35... Ra2 {[%clk 0:03:53.4]} 36.
hxg6 {[%clk 0:03:15.8]} 36... hxg6 {[%clk 0:03:52.2]} 37. Kh4 {[%clk 0:03:13.1]}
37... Ra3 {[%clk 0:03:48.6]} 38. g5 {[%clk 0:03:03]} 38... Bf2+ {[%clk
0:03:46.9]} 39. Kg4 {[%clk 0:03:01.1]} 39... Be3 {[%clk 0:03:37.7]} 40. Kh4
{[%clk 0:02:55.7]} 40... Ra5 {[%clk 0:03:33.9]} 41. Kg4 {[%clk 0:02:54.2]} 41...
Rxg5+ {[%clk 0:03:32.6]} 42. Kf3 {[%clk 0:02:53.6]} 42... Ra5 {[%clk 0:03:32.5]}
43. Kxe3 {[%clk 0:02:52.4]} 43... g5 {[%clk 0:03:31.5]} 44. Kf3 {[%clk
0:02:51.2]} 44... Ra4 {[%clk 0:03:30.3]} 45. a7 {[%clk 0:02:50.5]} 45... Kf6
{[%clk 0:03:26.1]} 46. Kg3 {[%clk 0:02:47.2]} 46... Ra3+ {[%clk 0:03:23.2]} 47.
Kg4 {[%clk 0:02:45.9]} 47... Ra4+ {[%clk 0:03:22.6]} 48. Kg3 {[%clk 0:02:44.9]}
48... Kf5 {[%clk 0:03:16.5]} 49. Rf8 {[%clk 0:02:40.3]} 49... Ra3+ {[%clk
0:03:12.9]} 50. Kf2 {[%clk 0:02:38.2]} 50... Rxa7 {[%clk 0:03:12.5]} 0-1

[Event "Live Chess"]
[Site "Chess.com"]
[Date "2024.06.02"]
[Round "-"]
[White "Dashman93"]
[Black "JoeyCage"]
[Result "1-0"]
[WhiteElo "2147"]
[BlackElo "2387"]
[TimeControl "300"]
[EndTime "7:31:24 PDT"]
[Termination "Dashman93 won on time"]

1. e4 {[%clk 0:04:58.4]} 1... c5 {[%clk 0:04:58.9]} 2. Nf3 {[%clk 0:04:57.9]}
2... Nc6 {[%clk 0:04:57.5]} 3. Bb5 {[%clk 0:04:57.3]} 3... g6 {[%clk 0:04:56.1]}
4. Bxc6 {[%clk 0:04:56.5]} 4... dxc6 {[%clk 0:04:54.9]} 5. O-O {[%clk
0:04:56.2]} 5... Bg7 {[%clk 0:04:53.8]} 6. Re1 {[%clk 0:04:55.6]} 6... Nf6
{[%clk 0:04:52.8]} 7. d3 {[%clk 0:04:53.7]} 7... O-O {[%clk 0:04:51.6]} 8. e5
{[%clk 0:04:53.3]} 8... Nd5 {[%clk 0:04:50.5]} 9. Nc3 {[%clk 0:04:51.6]} 9...
Nxc3 {[%clk 0:04:46.1]} 10. bxc3 {[%clk 0:04:51.5]} 10... b6 {[%clk 0:04:44.6]}
11. h3 {[%clk 0:04:49.3]} 11... h6 {[%clk 0:04:43.4]} 12. c4 {[%clk 0:04:48]}
12... Be6 {[%clk 0:04:41.5]} 13. Bb2 {[%clk 0:04:47.2]} 13... Qd7 {[%clk
0:04:37.6]} 14. Qd2 {[%clk 0:04:45.9]} 14... b5 {[%clk 0:04:33.4]} 15. Qf4
{[%clk 0:04:37.7]} 15... a5 {[%clk 0:04:29]} 16. Ba3 {[%clk 0:04:33.6]} 16... b4
{[%clk 0:04:24.4]} 17. Bc1 {[%clk 0:04:30.8]} 17... Rfb8 {[%clk 0:04:17.1]} 18.
Be3 {[%clk 0:04:29.6]} 18... Qa7 {[%clk 0:04:11.6]} 19. Nd2 {[%clk 0:04:27.1]}
19... g5 {[%clk 0:04:05]} 20. Qg3 {[%clk 0:04:22.7]} 20... Qc7 {[%clk
0:03:49.3]} 21. f4 {[%clk 0:04:19.1]} 21... gxf4 {[%clk 0:03:35.4]} 22. Bxf4
{[%clk 0:04:19]} 22... a4 {[%clk 0:03:30.9]} 23. Bxh6 {[%clk 0:04:16.9]} 23...
Kf8 {[%clk 0:00:07.2]} 24. Qxg7+ {[%clk 0:04:12.4]} 24... Ke8 {[%clk 0:00:06.2]}
25. Ne4 {[%clk 0:04:04]} 25... Kd7 {[%clk 0:00:05.4]} 26. Nxc5+ {[%clk
0:04:02.8]} 26... Kc8 {[%clk 0:00:03.9]} 27. Qf8+ {[%clk 0:03:59.9]} 27... Qd8
{[%clk 0:00:03]} 28. Nxe6 {[%clk 0:03:58.3]} 28... fxe6 {[%clk 0:00:01.6]} 29.
Qxd8+ {[%clk 0:03:56.3]} 29... Kxd8 {[%clk 0:00:00.8]} 30. Rf1 {[%clk
0:03:55.7]} 30... Kd7 {[%clk 0:00:00.7]} 31. Be3 {[%clk 0:03:54.5]} 31... Rh8
{[%clk 0:00:00.3]} 32. Kh2 {[%clk 0:03:53.3]} 1-0

[Event "Live Chess"]
[Site "Chess.com"]
[Date "2024.06.02"]
[Round "-"]
[White "DylanMeyer1"]
[Black "Bradfield133"]
[Result "0-1"]
[WhiteElo "1728"]
[BlackElo "1849"]
[TimeControl "300"]
[EndTime "7:31:50 PDT"]
[Termination "Bradfield133 won on time"]

1. c4 {[%clk 0:04:57.9]} 1... c5 {[%clk 0:04:57.7]} 2. Nc3 {[%clk 0:04:57.3]}
2... g6 {[%clk 0:04:56.9]} 3. g3 {[%clk 0:04:56.8]} 3... Bg7 {[%clk 0:04:56.2]}
4. Bg2 {[%clk 0:04:56.4]} 4... Nc6 {[%clk 0:04:54.7]} 5. e3 {[%clk 0:04:56]}
5... e5 {[%clk 0:04:53.9]} 6. Nge2 {[%clk 0:04:55.6]} 6... Nge7 {[%clk
0:04:52.1]} 7. O-O {[%clk 0:04:55.2]} 7... O-O {[%clk 0:04:50.7]} 8. b3 {[%clk
0:04:54.8]} 8... a6 {[%clk 0:04:47.8]} 9. Bb2 {[%clk 0:04:54.3]} 9... Rb8 {[%clk
0:04:46.7]} 10. a3 {[%clk 0:04:49.8]} 10... b5 {[%clk 0:04:44.3]} 11. cxb5
{[%clk 0:04:45.8]} 11... axb5 {[%clk 0:04:43.1]} 12. Nd5 {[%clk 0:04:34.7]}
12... Nxd5 {[%clk 0:04:36]} 13. Bxd5 {[%clk 0:04:34.6]} 13... Ne7 {[%clk
0:04:34.9]} 14. Bg2 {[%clk 0:04:33.5]} 14... d5 {[%clk 0:04:31.4]} 15. d4 {[%clk
0:04:31.1]} 15... exd4 {[%clk 0:04:24.7]} 16. exd4 {[%clk 0:04:29.8]} 16... c4
{[%clk 0:04:23.8]} 17. bxc4 {[%clk 0:04:25.8]} 17... bxc4 {[%clk 0:04:21.8]} 18.
Bc3 {[%clk 0:04:25.3]} 18... Nf5 {[%clk 0:04:07.4]} 19. Nf4 {[%clk 0:04:16.9]}
19... Be6 {[%clk 0:04:01.5]} 20. Qd2 {[%clk 0:04:04.2]} 20... Rb3 {[%clk
0:03:54.1]} 21. Rfb1 {[%clk 0:03:59.2]} 21... Rxc3 {[%clk 0:03:41.6]} 22. Qxc3
{[%clk 0:03:57.4]} 22... Bxd4 {[%clk 0:03:40.4]} 23. Qd2 {[%clk 0:03:06.4]}
23... Bxa1 {[%clk 0:03:37.5]} 24. Rxa1 {[%clk 0:03:06.3]} 24... Qb6 {[%clk
0:03:18.9]} 25. Nxd5 {[%clk 0:02:08]} 25... Rd8 {[%clk 0:02:48.1]} 26. Nf6+
{[%clk 0:02:05.5]} 26... Kg7 {[%clk 0:02:46.3]} 27. Qc3 {[%clk 0:01:13.6]} 27...
Nd4 {[%clk 0:02:41.5]} 28. Ne4 {[%clk 0:00:32.4]} 28... Qb3 {[%clk 0:02:35.7]}
29. f4 {[%clk 0:00:17.6]} 29... Qxc3 {[%clk 0:02:24.9]} 30. Nxc3 {[%clk
0:00:17.5]} 30... Nb3 {[%clk 0:02:20.6]} 31. Ra2 {[%clk 0:00:15.8]} 31... Rd3
{[%clk 0:02:13.3]} 32. Kf2 {[%clk 0:00:15.7]} 32... Rxc3 {[%clk 0:02:11.6]} 33.
a4 {[%clk 0:00:15.4]} 33... Na5 {[%clk 0:02:08.5]} 34. Bc6 {[%clk 0:00:12.6]}
34... Rb3 {[%clk 0:02:03.3]} 35. Bb5 {[%clk 0:00:11.3]} 35... c3 {[%clk
0:02:00.4]} 36. Ke2 {[%clk 0:00:08.8]} 36... Rb2+ {[%clk 0:01:59.3]} 37. Rxb2
{[%clk 0:00:07.3]} 37... cxb2 {[%clk 0:01:58.6]} 38. Bd3 {[%clk 0:00:07.2]}
38... Nc4 {[%clk 0:01:54.7]} 39. Kd1 {[%clk 0:00:06]} 39... Na3 {[%clk 0:01:53]}
40. Kd2 {[%clk 0:00:04.2]} 40... b1=Q {[%clk 0:01:50.9]} 41. Bxb1 {[%clk
0:00:04.1]} 41... Nxb1+ {[%clk 0:01:49.7]} 42. Kd3 {[%clk 0:00:02.7]} 42... Bd5
{[%clk 0:01:45.9]} 43. Kd4 {[%clk 0:00:01.9]} 43... Bf3 {[%clk 0:01:42.8]} 44.
a5 {[%clk 0:00:01.8]} 44... Kf6 {[%clk 0:01:36.1]} 45. Kc5 {[%clk 0:00:01.7]}
45... Kf5 {[%clk 0:01:33.3]} 46. Kb6 {[%clk 0:00:01.6]} 46... Kg4 {[%clk
0:01:31.6]} 47. a6 {[%clk 0:00:01.5]} 47... Kh3 {[%clk 0:01:29.4]} 48. a7 {[%clk
0:00:01.4]} 48... Kxh2 {[%clk 0:01:26.7]} 49. Kc7 {[%clk 0:00:01.3]} 49... Kxg3
{[%clk 0:01:23.8]} 50. Kd8 {[%clk 0:00:01.2]} 50... h5 {[%clk 0:01:21.7]} 51.
Ke7 {[%clk 0:00:01.1]} 51... h4 {[%clk 0:01:19.9]} 52. Kxf7 {[%clk 0:00:01]}
52... h3 {[%clk 0:01:17.7]} 53. Kxg6 {[%clk 0:00:00.9]} 53... h2 {[%clk
0:01:16.4]} 54. Kg5 {[%clk 0:00:00.8]} 54... h1=Q {[%clk 0:01:14.7]} 55. f5
{[%clk 0:00:00.7]} 55... Bb7 {[%clk 0:01:10.1]} 56. f6 {[%clk 0:00:00.6]} 56...
Qd5+ {[%clk 0:01:07.1]} 0-1

[Event "Live Chess"]
[Site "Chess.com"]
[Date "2024.06.02"]
[Round "-"]
[White "lateforthesky"]
[Black "Anareza_Firouzja"]
[Result "1-0"]
[WhiteElo "2070"]
[BlackElo "1881"]
[TimeControl "300"]
[EndTime "7:31:51 PDT"]
[Termination "lateforthesky won by resignation"]

1. e4 {[%clk 0:04:52.2]} 1... c5 {[%clk 0:04:58.4]} 2. Nf3 {[%clk 0:04:51.2]}
2... d6 {[%clk 0:04:57.2]} 3. d4 {[%clk 0:04:49.9]} 3... cxd4 {[%clk 0:04:57.1]}
4. Nxd4 {[%clk 0:04:49]} 4... Nf6 {[%clk 0:04:56.8]} 5. Nc3 {[%clk 0:04:47.8]}
5... g6 {[%clk 0:04:56.2]} 6. Be2 {[%clk 0:04:45.4]} 6... Bg7 {[%clk 0:04:55.1]}
7. O-O {[%clk 0:04:43.9]} 7... Nc6 {[%clk 0:04:54.6]} 8. Be3 {[%clk 0:04:40.7]}
8... O-O {[%clk 0:04:53.9]} 9. f3 {[%clk 0:04:39]} 9... a6 {[%clk 0:04:51.2]}
10. Nb3 {[%clk 0:04:34.8]} 10... b5 {[%clk 0:04:42.6]} 11. Qe1 {[%clk
0:04:29.4]} 11... Bb7 {[%clk 0:04:38.3]} 12. Qf2 {[%clk 0:04:28.3]} 12... Nd7
{[%clk 0:04:33.6]} 13. a4 {[%clk 0:04:07.7]} 13... b4 {[%clk 0:04:29.4]} 14. Nd5
{[%clk 0:04:06.1]} 14... Bxb2 {[%clk 0:04:23.5]} 15. a5 {[%clk 0:04:03.3]} 15...
Bxa1 {[%clk 0:04:11.6]} 16. Rxa1 {[%clk 0:04:01.1]} 16... Nce5 {[%clk
0:04:00.2]} 17. f4 {[%clk 0:03:44.2]} 17... Bxd5 {[%clk 0:03:57.4]} 18. exd5
{[%clk 0:03:42.3]} 18... Qc7 {[%clk 0:03:43.7]} 19. fxe5 {[%clk 0:03:40.3]}
19... Qxc2 {[%clk 0:03:39.8]} 20. Nd4 {[%clk 0:03:25.8]} 20... Qc7 {[%clk
0:03:14.2]} 21. Rc1 {[%clk 0:03:14.3]} 21... Qxa5 {[%clk 0:03:10.1]} 22. Nc6
{[%clk 0:03:11.5]} 22... Qd8 {[%clk 0:02:58.8]} 23. Bh6 {[%clk 0:03:02.7]} 23...
Qb6 {[%clk 0:02:41.3]} 24. Nxe7+ {[%clk 0:02:54.7]} 24... Kh8 {[%clk 0:02:40]}
25. Bxf8 {[%clk 0:02:51.4]} 25... Qxf2+ {[%clk 0:02:33.6]} 26. Kxf2 {[%clk
0:02:49.6]} 26... Nxf8 {[%clk 0:02:26.5]} 27. exd6 {[%clk 0:02:46.3]} 27... a5
{[%clk 0:02:24.5]} 28. d7 {[%clk 0:02:43.2]} 28... Nxd7 {[%clk 0:02:20.2]} 29.
Bb5 {[%clk 0:02:32.7]} 29... Nf6 {[%clk 0:02:17.6]} 30. Ra1 {[%clk 0:02:20.3]}
30... Ne4+ {[%clk 0:02:12]} 31. Ke3 {[%clk 0:02:17.3]} 31... Nc3 {[%clk
0:02:11.9]} 32. d6 {[%clk 0:02:10.2]} 32... Nxb5 {[%clk 0:02:08]} 33. d7 {[%clk
0:02:03]} 33... Nc7 {[%clk 0:01:50.7]} 34. Nc8 {[%clk 0:01:59.1]} 34... Ne6
{[%clk 0:01:49.1]} 35. Kd2 {[%clk 0:01:47.8]} 35... a4 {[%clk 0:01:47.7]} 36.
Re1 {[%clk 0:01:46.7]} 1-0

[Event "Live Chess"]
[Site "Chess.com"]
[Date "2024.06.02"]
[Round "-"]
[White "SavagePawn7"]
[Black "elephantgerrald"]
[Result "1-0"]
[WhiteElo "696"]
[BlackElo "852"]
[TimeControl "300"]
[EndTime "7:32:27 PDT"]
[Termination "SavagePawn7 won by checkmate"]

1. e4 {[%clk 0:04:55.8]} 1... e5 {[%clk 0:04:58.7]} 2. d4 {[%clk 0:04:53.8]}
2... exd4 {[%clk 0:04:57.7]} 3. c3 {[%clk 0:04:52.1]} 3... dxc3 {[%clk
0:04:56.4]} 4. Bc4 {[%clk 0:04:48.3]} 4... cxb2 {[%clk 0:04:55.2]} 5. Bxb2
{[%clk 0:04:46.8]} 5... Nf6 {[%clk 0:04:52.3]} 6. e5 {[%clk 0:04:44.7]} 6... h6
{[%clk 0:04:50.8]} 7. exf6 {[%clk 0:04:42.3]} 7... gxf6 {[%clk 0:03:46.8]} 8.
Qe2+ {[%clk 0:04:33.3]} 8... Be7 {[%clk 0:03:43.5]} 9. Bxf6 {[%clk 0:04:29]}
9... Nc6 {[%clk 0:03:41.1]} 10. Bxh8 {[%clk 0:04:25.8]} 10... Nd4 {[%clk
0:03:36.2]} 11. Bxd4 {[%clk 0:04:17.9]} 11... d5 {[%clk 0:03:32.2]} 12. Bb3
{[%clk 0:04:13.7]} 12... Bf5 {[%clk 0:03:27.5]} 13. Bf6 {[%clk 0:04:05]} 13...
Qd6 {[%clk 0:03:24.9]} 14. Bxe7 {[%clk 0:04:02]} 14... Qxe7 {[%clk 0:03:20.4]}
15. Qxe7+ {[%clk 0:04:00.3]} 15... Kxe7 {[%clk 0:03:07.4]} 16. Nf3 {[%clk
0:03:58.5]} 16... Rd8 {[%clk 0:03:06.5]} 17. O-O {[%clk 0:03:56.4]} 17... Kd7
{[%clk 0:03:06.4]} 18. Bxd5 {[%clk 0:03:50.7]} 18... Kc8 {[%clk 0:03:06.3]} 19.
Nc3 {[%clk 0:03:40.5]} 19... Bd3 {[%clk 0:03:00.2]} 20. Rfd1 {[%clk 0:03:34.3]}
20... Bf5 {[%clk 0:02:55]} 21. Bxb7+ {[%clk 0:03:26.7]} 21... Kxb7 {[%clk
0:02:50.3]} 22. Rxd8 {[%clk 0:03:23.5]} 22... Kc6 {[%clk 0:02:48.7]} 23. Ne5+
{[%clk 0:03:10.1]} 23... Kc5 {[%clk 0:02:46.6]} 24. Nxf7 {[%clk 0:02:48.9]}
24... Kc4 {[%clk 0:02:44.5]} 25. Rc1 {[%clk 0:02:46.6]} 25... Kb4 {[%clk
0:02:40.8]} 26. Rb8+ {[%clk 0:02:35.1]} 26... Ka3 {[%clk 0:02:04.1]} 27. Nxh6
{[%clk 0:02:22.7]} 27... Be6 {[%clk 0:02:00.3]} 28. Re8 {[%clk 0:02:03.8]} 28...
Bc4 {[%clk 0:01:48.6]} 29. Re4 {[%clk 0:01:40.7]} 29... Bxa2 {[%clk 0:01:46.1]}
30. Nxa2 {[%clk 0:01:37.8]} 30... Kxa2 {[%clk 0:01:44.6]} 31. Rxc7 {[%clk
0:01:30.7]} 31... a5 {[%clk 0:01:43.2]} 32. Ra7 {[%clk 0:01:24.9]} 32... Kb3
{[%clk 0:01:40.7]} 33. Rxa5 {[%clk 0:01:22.7]} 33... Kc3 {[%clk 0:01:38.7]} 34.
f3 {[%clk 0:01:09]} 34... Kb3 {[%clk 0:01:34.5]} 35. Ra8 {[%clk 0:01:04.9]}
35... Kc3 {[%clk 0:01:29.1]} 36. Rd8 {[%clk 0:01:03.1]} 36... Kb3 {[%clk
0:00:41.5]} 37. Re7 {[%clk 0:01:00.1]} 37... Kc4 {[%clk 0:00:39.3]} 38. Rc7+
{[%clk 0:00:58.2]} 38... Kb5 {[%clk 0:00:38]} 39. Rb8+ {[%clk 0:00:47.9]} 39...
Ka6 {[%clk 0:00:34.8]} 40. Rb1 {[%clk 0:00:40.3]} 40... Ka5 {[%clk 0:00:33]} 41.
Ra7# {[%clk 0:00:37.1]} 1-0

[Event "Live Chess"]
[Site "Chess.com"]
[Date "2024.06.02"]
[Round "-"]
[White "juniortay"]
[Black "halfberg"]
[Result "1-0"]
[WhiteElo "2305"]
[BlackElo "1914"]
[TimeControl "300"]
[EndTime "7:32:27 PDT"]
[Termination "juniortay won by resignation"]

1. e4 {[%clk 0:04:57.2]} 1... c5 {[%clk 0:04:58.2]} 2. Nf3 {[%clk 0:04:56.1]}
2... Nc6 {[%clk 0:04:57.2]} 3. b4 {[%clk 0:04:54.3]} 3... cxb4 {[%clk
0:04:55.4]} 4. d4 {[%clk 0:04:53.3]} 4... e6 {[%clk 0:04:49.1]} 5. a3 {[%clk
0:04:50.7]} 5... bxa3 {[%clk 0:04:46.4]} 6. c3 {[%clk 0:04:49.8]} 6... d5 {[%clk
0:04:43.5]} 7. e5 {[%clk 0:04:48.6]} 7... f6 {[%clk 0:04:40.5]} 8. Bxa3 {[%clk
0:04:44.7]} 8... Bxa3 {[%clk 0:04:38.3]} 9. Nxa3 {[%clk 0:04:43.7]} 9... a6
{[%clk 0:04:30]} 10. Nb5 {[%clk 0:04:42.5]} 10... Rb8 {[%clk 0:04:14.7]} 11.
Nd6+ {[%clk 0:04:40.9]} 11... Kf8 {[%clk 0:04:13.8]} 12. Bd3 {[%clk 0:04:39.9]}
12... Nge7 {[%clk 0:04:08.8]} 13. O-O {[%clk 0:04:37.8]} 13... Bd7 {[%clk
0:03:57.1]} 14. Re1 {[%clk 0:04:32.2]} 14... fxe5 {[%clk 0:03:35]} 15. dxe5
{[%clk 0:04:30.9]} 15... Be8 {[%clk 0:03:24.6]} 16. Ng5 {[%clk 0:04:20.7]} 16...
Nxe5 {[%clk 0:03:08.1]} 17. Nxe6+ {[%clk 0:04:18.3]} 17... Kg8 {[%clk
0:03:04.4]} 18. Nxd8 {[%clk 0:04:16.5]} 1-0

[Event "Live Chess"]
[Site "Chess.com"]
[Date "2024.06.02"]
[Round "-"]
[White "GEMdzq"]
[Black "RichardABates"]
[Result "0-1"]
[WhiteElo "2269"]
[BlackElo "2375"]
[TimeControl "300"]
[EndTime "7:32:29 PDT"]
[Termination "RichardABates won on time"]

1. e4 {[%clk 0:04:58.3]} 1... c5 {[%clk 0:04:58]} 2. d4 {[%clk 0:04:56.9]} 2...
cxd4 {[%clk 0:04:56]} 3. c3 {[%clk 0:04:56.5]} 3... Nf6 {[%clk 0:04:54.1]} 4. e5
{[%clk 0:04:55.3]} 4... Nd5 {[%clk 0:04:53]} 5. Qxd4 {[%clk 0:04:55]} 5... e6
{[%clk 0:04:51.6]} 6. Bd3 {[%clk 0:04:53.4]} 6... Nc6 {[%clk 0:04:49.9]} 7. Qe4
{[%clk 0:04:52.4]} 7... f5 {[%clk 0:04:44.9]} 8. exf6 {[%clk 0:04:50.9]} 8...
Nxf6 {[%clk 0:04:43.6]} 9. Qh4 {[%clk 0:04:50.5]} 9... Be7 {[%clk 0:04:39.3]}
10. Nf3 {[%clk 0:04:49.4]} 10... O-O {[%clk 0:04:33.9]} 11. Bg5 {[%clk
0:04:47.9]} 11... h6 {[%clk 0:04:22.1]} 12. Bxh6 {[%clk 0:04:35.7]} 12... gxh6
{[%clk 0:04:18]} 13. Qxh6 {[%clk 0:04:34.8]} 13... Rf7 {[%clk 0:04:16.7]} 14. h4
{[%clk 0:03:45.3]} 14... Bf8 {[%clk 0:04:02.3]} 15. Qd2 {[%clk 0:03:23.1]} 15...
e5 {[%clk 0:03:57.1]} 16. Ng5 {[%clk 0:03:20.2]} 16... d5 {[%clk 0:03:51.3]} 17.
Nxf7 {[%clk 0:03:18.5]} 17... Kxf7 {[%clk 0:03:49.9]} 18. Qg5 {[%clk 0:02:59.6]}
18... e4 {[%clk 0:03:39.4]} 19. Be2 {[%clk 0:02:58.2]} 19... Qd6 {[%clk
0:03:13]} 20. Nd2 {[%clk 0:02:40]} 20... Qe5 {[%clk 0:03:07.2]} 21. O-O-O {[%clk
0:02:38.2]} 21... Qxg5 {[%clk 0:03:01.8]} 22. hxg5 {[%clk 0:02:38.1]} 22... Ng4
{[%clk 0:03:00.5]} 23. Nb3 {[%clk 0:02:22.7]} 23... Nxf2 {[%clk 0:02:43.2]} 24.
Rhf1 {[%clk 0:02:21.3]} 24... e3 {[%clk 0:02:41.8]} 25. Rxd5 {[%clk 0:02:16.2]}
25... Be6 {[%clk 0:02:39.3]} 26. Rd3 {[%clk 0:02:10.7]} 26... Bxb3 {[%clk
0:02:31.2]} 27. Rxe3 {[%clk 0:01:57.8]} 27... Bc5 {[%clk 0:02:29.3]} 28. Rf3+
{[%clk 0:01:42.8]} 28... Kg7 {[%clk 0:02:27.6]} 29. axb3 {[%clk 0:01:41.4]}
29... Rf8 {[%clk 0:01:58.1]} 30. Kc2 {[%clk 0:01:30.7]} 30... Ne5 {[%clk
0:01:51.2]} 31. Rxf8 {[%clk 0:01:23.9]} 31... Kxf8 {[%clk 0:01:49.5]} 32. b4
{[%clk 0:01:22.9]} 32... Bb6 {[%clk 0:01:47.2]} 33. Bf3 {[%clk 0:01:15.3]} 33...
Nc4 {[%clk 0:01:37.7]} 34. Ra1 {[%clk 0:00:47.6]} 34... Kg7 {[%clk 0:01:31.5]}
35. Bxb7 {[%clk 0:00:45.6]} 35... Kg6 {[%clk 0:01:29.7]} 36. b3 {[%clk
0:00:35.5]} 36... Ne3+ {[%clk 0:01:20]} 37. Kd2 {[%clk 0:00:32.9]} 37... Kxg5
{[%clk 0:01:18.6]} 38. c4 {[%clk 0:00:29]} 38... Bd4 {[%clk 0:01:16.9]} 39. Ra5+
{[%clk 0:00:28]} 39... Kf4 {[%clk 0:01:13.4]} 40. Bf3 {[%clk 0:00:21.8]} 40...
Nf1+ {[%clk 0:01:11.2]} 41. Ke1 {[%clk 0:00:19.6]} 41... Ng3 {[%clk 0:01:05.9]}
42. Rd5 {[%clk 0:00:17]} 42... Be3 {[%clk 0:00:43.8]} 43. c5 {[%clk 0:00:16.8]}
43... Nfe4 {[%clk 0:00:36.6]} 44. c6 {[%clk 0:00:14.1]} 44... Bf2+ {[%clk
0:00:32.6]} 45. Kd1 {[%clk 0:00:12.4]} 45... Nc3+ {[%clk 0:00:31.8]} 46. Kc2
{[%clk 0:00:09.9]} 46... Nxd5 {[%clk 0:00:30.9]} 47. Bxd5 {[%clk 0:00:09.8]}
47... Bb6 {[%clk 0:00:29.6]} 48. Bf3 {[%clk 0:00:08.8]} 48... Ke5 {[%clk
0:00:28.4]} 49. b5 {[%clk 0:00:08.2]} 49... Nf5 {[%clk 0:00:27.1]} 50. Kc3
{[%clk 0:00:08.1]} 50... Nd4 {[%clk 0:00:25.3]} 51. Kc4 {[%clk 0:00:05.9]} 51...
Kd6 {[%clk 0:00:23.5]} 52. Be4 {[%clk 0:00:04.5]} 52... Ne6 {[%clk 0:00:21.7]}
53. b4 {[%clk 0:00:04.4]} 53... Ng5 {[%clk 0:00:20.5]} 54. Bf3 {[%clk
0:00:04.1]} 54... Nf7 {[%clk 0:00:19.4]} 55. Bd5 {[%clk 0:00:03]} 55... Ne5+
{[%clk 0:00:18.3]} 0-1

[Event "Live Chess"]
[Site "Chess.com"]
[Date "2024.06.02"]
[Round "-"]
[White "blunderabit"]
[Black "Inglaterra"]
[Result "1-0"]
[WhiteElo "1778"]
[BlackElo "2035"]
[TimeControl "300"]
[EndTime "7:32:32 PDT"]
[Termination "blunderabit won by checkmate"]

1. e4 {[%clk 0:04:52.4]} 1... e5 {[%clk 0:04:58.5]} 2. Nf3 {[%clk 0:04:49.6]}
2... Nc6 {[%clk 0:04:57.8]} 3. Bb5 {[%clk 0:04:46.9]} 3... a6 {[%clk 0:04:53.1]}
4. Ba4 {[%clk 0:04:44.4]} 4... Nf6 {[%clk 0:04:33.1]} 5. O-O {[%clk 0:04:42.3]}
5... Be7 {[%clk 0:04:29.4]} 6. Re1 {[%clk 0:04:37.8]} 6... b5 {[%clk 0:04:28.7]}
7. Bb3 {[%clk 0:04:35.5]} 7... d6 {[%clk 0:04:27.3]} 8. a4 {[%clk 0:04:34.2]}
8... Bb7 {[%clk 0:04:22.7]} 9. axb5 {[%clk 0:04:30.1]} 9... axb5 {[%clk
0:04:22.6]} 10. Rxa8 {[%clk 0:04:28.4]} 10... Qxa8 {[%clk 0:04:22.2]} 11. d3
{[%clk 0:04:24.3]} 11... O-O {[%clk 0:04:14.4]} 12. Nbd2 {[%clk 0:04:19.1]}
12... Nd7 {[%clk 0:04:11.8]} 13. c3 {[%clk 0:04:15.2]} 13... Nc5 {[%clk
0:04:06.5]} 14. Bc2 {[%clk 0:04:13.7]} 14... Ne6 {[%clk 0:04:03.9]} 15. Nf1
{[%clk 0:04:06.9]} 15... b4 {[%clk 0:03:52.8]} 16. d4 {[%clk 0:04:04.6]} 16...
Nf4 {[%clk 0:03:25.2]} 17. d5 {[%clk 0:04:00.1]} 17... Na5 {[%clk 0:03:17]} 18.
Bxf4 {[%clk 0:03:46.8]} 18... exf4 {[%clk 0:03:11.6]} 19. cxb4 {[%clk 0:03:33]}
19... Nc4 {[%clk 0:03:08.8]} 20. Qd4 {[%clk 0:03:29.2]} 20... Nb6 {[%clk
0:03:03.6]} 21. Qd2 {[%clk 0:03:02.4]} 21... Bf6 {[%clk 0:02:48.6]} 22. Qxf4
{[%clk 0:02:55.2]} 22... Bxb2 {[%clk 0:02:47.2]} 23. e5 {[%clk 0:02:46.5]} 23...
Nxd5 {[%clk 0:02:41.1]} 24. Qh4 {[%clk 0:02:36.5]} 24... g6 {[%clk 0:02:35.8]}
25. Ng5 {[%clk 0:02:31.5]} 25... h5 {[%clk 0:02:34.7]} 26. e6 {[%clk 0:02:25.9]}
26... f6 {[%clk 0:02:08.8]} 27. Bxg6 {[%clk 0:02:02.6]} 27... fxg5 {[%clk
0:02:06.3]} 28. Qxg5 {[%clk 0:02:01.3]} 28... Bg7 {[%clk 0:01:54.1]} 29. Qxh5
{[%clk 0:01:55.1]} 29... Rf6 {[%clk 0:01:41]} 30. Bh7+ {[%clk 0:01:38.7]} 30...
Kf8 {[%clk 0:01:39.6]} 31. Ng3 {[%clk 0:01:18.9]} 31... Nf4 {[%clk 0:01:17.6]}
32. e7# {[%clk 0:01:14.3]} 1-0